[Event "2nd Irena Warakomska Memorial-A"]
[Site "Suwalki"]
[Date "2018.08.06"]
[Round "7"]
[White "Kanarek, Marcel"]
[Black "Sliwicki, Damian"]
[Result "1-0"]
[ECO "B76"]
[WhiteElo "2518"]
[BlackElo "2220"]
[Annotator "RC"]
[PlyCount "83"]
[EventDate "2018.08.01"]
[EventType "swiss"]
[EventCountry "POL"]
[SourceTitle "playchess.com"]
[Source "ChessBase"]
[SourceQuality "1"]
[TimeControl "40/5400+30:1800+30"]

1. e4 {[%emt 0:00:18]} c5 {[%emt 0:01:50]} 2. Nf3 {[%emt 0:00:03]} d6 {[%emt 0:00:05]} 3. d4 {[%emt 0:00:16]} Nf6 {[%emt 0:00:04]} 4. Nc3 {[%emt 0:00:06]} cxd4 {[%emt 0:00:02]} 5. Nxd4 {[%emt 0:00:05]} g6 {[%emt 0:00:03]} 6. Be3 {[%emt 0:01:31]} Bg7 {[%emt 0:00:05]} 7. f3 {[%emt 0:02:43]} O-O {[%emt 0:00:06]} 8. Qd2 {[%emt 0:00:12]} Nc6 {[%emt 0:00:04]} 9. O-O-O {[%emt 0:05:01]} Nxd4 {[%emt 0:00:03]} 10. Bxd4 {[%emt 0:00:09]} Be6 {[%emt 0:00:04]} 11. Kb1 {[%emt 0:00:46]} Qc7 {[%emt 0:00:03]} 12. h4 {[%emt 0:02:16]} h5 {[%emt 0:01:44]} 13. g4 {[%emt 0:11:10]} Rac8 {[%emt 0:11:39]} 14. Nb5 {[%emt 0:14:15]} Qd7 {[%emt 0:09:04]} 15. gxh5 {[%emt 0:23:49]} Nxh5 {[%emt 0:02:56]} 16. Rg1 {[%emt 0:09:07]} Bc4 {[%emt 0:08:58]} 17. Bxg7 {[%emt 0:06:40]} Nxg7 {[%emt 0:01:41]} 18. Bxc4 {[%emt 0:03:08]} Rxc4 {[%emt 0:00:03]} 19. Nd4 {[%emt 0:00:36]} Rfc8 {[%emt 0:07:20]} 20. c3 {[%emt 0:02:31]} R4c5 {[%emt 0:09:58]} 21. f4 {[%emt 0:00:46]} e6 {[%emt 0:01:14]} 22. f5 {[%emt 0:07:22]} exf5 {[%emt 0:01:22]} 23. h5 {[%emt 0:00:22]} fxe4 {[%emt 0:24:17]} 24. hxg6 {[%emt 0:00:55]} f6 {[%emt 0:00:03]} 25. Rh1 {[%emt 0:04:33]} Rg5 {[%emt 0:00:03]} 26. Rh6 {[%emt 0:01:18]} Qg4 {[%emt 0:01:12]} 27. Rdh1 {[%emt 0:01:36]} Rxg6 {[%emt 0:00:08]} 28. R6h4 {[%emt 0:01:25]} Qd7 {[%emt 0:00:24]} 29. Rxe4 {[%emt 0:00:51]} Re8 {[%emt 0:00:58]} 30. Reh4 {[%emt 0:00:16]} Kf7 {[%emt 0:00:30]} 31. Qd3 {[%emt 0:00:43]} d5 {[%emt 0:01:44]} 32. Rh7 {[%emt 0:00:10]} Qg4 {[%emt 0:00:23]} 33. Nf5 {[%emt 0:00:22]} Qg2 {[%emt 0:08:15]} 34. Nd6+ {[%emt 0:00:33]} Ke6 {[%emt 0:00:04]} 35. Nxe8 {[%emt 0:00:25]} Nxe8 {[%emt 0:00:13]} 36. Re1+ {[%emt 0:00:52]} Kd6 {[%emt 0:00:01]} 37. Rxe8 {[%emt 0:00:46]} Rg3 {[%emt 0:00:34]} 38. Qd1 {[%emt 0:00:27]} Rf3 {[%emt 0:04:29]} 39. Rd8+ {[%emt 0:00:08]} Ke5 {[%emt 0:00:59]} 40. Qxd5+ {[%emt 0:00:00]} Kf4 {[%emt 0:00:00]} 41. Rh4+ {[%emt 0:01:27]} Kg3 {[%emt 0:00:36]} 42. Rg8+ {[%emt 0:00:21]} 1-0

[Event "2nd Irena Warakomska Memorial-A"]
[Site "Suwalki"]
[Date "2018.08.06"]
[Round "7"]
[White "Shtembuliak, Evgeny"]
[Black "Fus, Jakub"]
[Result "1-0"]
[ECO "A13"]
[WhiteElo "2518"]
[BlackElo "2210"]
[Annotator "ChessBase"]
[PlyCount "71"]
[EventDate "2018.08.01"]
[EventType "swiss"]
[EventCountry "POL"]
[SourceTitle "playchess.com"]
[Source "ChessBase"]
[SourceQuality "1"]
[TimeControl "40/5400+30:1800+30"]

1. c4 {[%emt 0:00:00]} e6 {[%emt 0:00:00]} 2. Nc3 {[%emt 0:00:00]} Bb4 {[%emt 0:00:00]} 3. Qb3 {[%emt 0:00:00]} Ba5 {[%emt 0:00:16]} 4. Nf3 {[%emt 0:05:34]} Nf6 {[%emt 0:01:23]} 5. g4 {[%emt 0:01:20]} h6 {[%emt 0:05:12]} 6. Rg1 {[%emt 0:00:11]} Nc6 {[%emt 0:16:14]} 7. h4 {[%emt 0:08:59]} d5 {[%emt 0:05:00]} 8. g5 hxg5 {[%emt 0:01:02]} 9. hxg5 {[%emt 0:01:37]} dxc4 {[%emt 0:00:27]} 10. Qxc4 {[%emt 0:01:31]} Nd5 {[%emt 0:00:56]} 11. g6 {[%emt 0:06:24]} f6 {[%emt 0:00:41]} 12. a3 {[%emt 0:18:13]} Nxc3 {[%emt 0:04:30]} 13. dxc3 {[%emt 0:01:53]} Qd5 {[%emt 0:05:32]} 14. Qa4 {[%emt 0:13:02]} Bd7 {[%emt 0:05:25]} 15. Qc2 {[%emt 0:00:13]} Qf5 {[%emt 0:03:24]} 16. Qxf5 {[%emt 0:04:55]} exf5 {[%emt 0:00:05]} 17. Bf4 {[%emt 0:02:36]} O-O-O {[%emt 0:01:49]} 18. e3 {[%emt 0:01:21]} Rde8 {[%emt 0:00:57]} 19. Bc4 {[%emt 0:02:56]} Ne5 {[%emt 0:04:07]} 20. Bxe5 {[%emt 0:00:05]} fxe5 {[%emt 0:00:06]} 21. Bf7 {[%emt 0:00:03]} Re7 {[%emt 0:00:20]} 22. O-O-O {[%emt 0:00:08]} Bc6 {[%emt 0:23:49]} 23. Ng5 {[%emt 0:02:54]} f4 {[%emt 0:02:49]} 24. exf4 {[%emt 0:00:54]} exf4 {[%emt 0:00:11]} 25. Ne6 {[%emt 0:00:19]} Bb6 {[%emt 0:00:19]} 26. Rd2 {[%emt 0:00:04]} Rd7 {[%emt 0:00:56]} 27. Rgd1 {[%emt 0:10:53]} Rxd2 28. Rxd2 {[%emt 0:00:02]} Rh1+ {[%emt 0:04:31]} 29. Rd1 {[%emt 0:09:12]} Bxf2 {[%emt 0:01:18]} 30. Rxh1 {[%emt 0:00:05]} Be3+ {[%emt 0:02:26]} 31. Kd1 {[%emt 0:01:25]} Bxh1 {[%emt 0:00:15]} 32. Nxg7 {[%emt 0:00:05]} f3 {[%emt 0:06:26]} 33. Nf5 {[%emt 0:00:40]} f2 {[%emt 0:03:04]} 34. Nxe3 {[%emt 0:00:06]} Bf3+ {[%emt 0:00:03]} 35. Kd2 {[%emt 0:00:05]} Bh5 {[%emt 0:00:22]} 36. Be6+ {[%emt 0:00:05]} 1-0

[Event "2nd Irena Warakomska Memorial-A"]
[Site "Suwalki"]
[Date "2018.08.06"]
[Round "7"]
[White "Venkataraman, Karthik"]
[Black "Stupak, Kirill"]
[Result "1/2-1/2"]
[ECO "B12"]
[WhiteElo "2501"]
[BlackElo "2573"]
[Annotator "ChessBase"]
[PlyCount "81"]
[EventDate "2018.08.01"]
[EventType "swiss"]
[EventCountry "POL"]
[SourceTitle "playchess.com"]
[Source "ChessBase"]
[SourceQuality "1"]
[TimeControl "40/5400+30:1800+30"]

1. e4 {[%emt 0:00:00]} c6 {[%emt 0:05:36]} 2. d4 {[%emt 0:00:00]} d5 {[%emt 0:00:01]} 3. e5 {[%emt 0:00:00]} c5 {[%emt 0:00:05]} 4. dxc5 {[%emt 0:00:00]} Nc6 {[%emt 0:00:02]} 5. f4 {[%emt 0:00:00]} e6 {[%emt 0:03:16]} 6. Be3 {[%emt 0:00:00]} d4 {[%emt 0:04:33]} 7. Bf2 {[%emt 0:00:04]} Bxc5 {[%emt 0:00:02]} 8. Nd2 {[%emt 0:00:07]} Nge7 {[%emt 0:03:13]} 9. Bd3 {[%emt 0:02:18]} Nd5 {[%emt 0:04:26]} 10. Qf3 {[%emt 0:00:41]} Qa5 {[%emt 0:34:52]} 11. a3 {[%emt 0:01:33]} Ncb4 {[%emt 0:06:11]} 12. Rc1 {[%emt 0:16:31]} Nxd3+ {[%emt 0:01:15]} 13. Qxd3 {[%emt 0:00:07]} Qa4 {[%emt 0:06:59]} 14. Ne2 {[%emt 0:01:07]} b6 {[%emt 0:06:04]} 15. Qe4 {[%emt 0:06:03]} Rb8 {[%emt 0:05:25]} 16. Bxd4 {[%emt 0:02:40]} Bxd4 {[%emt 0:00:28]} 17. Nxd4 {[%emt 0:00:41]} Bb7 {[%emt 0:00:10]} 18. c4 {[%emt 0:02:01]} Ne7 {[%emt 0:01:48]} 19. Qe2 {[%emt 0:01:33]} O-O {[%emt 0:01:01]} 20. O-O {[%emt 0:01:44]} Rfd8 {[%emt 0:00:05]} 21. N2f3 {[%emt 0:04:42]} Rd7 {[%emt 0:00:47]} 22. Rfd1 {[%emt 0:29:48]} Rbd8 {[%emt 0:00:40]} 23. Rd2 {[%emt 0:00:23]} h6 {[%emt 0:07:41]} 24. Rcd1 {[%emt 0:20:17]} Nf5 {[%emt 0:00:01]} 25. Kf2 {[%emt 0:00:11]} Nxd4 {[%emt 0:03:37]} 26. Nxd4 {[%emt 0:00:01]} Ba6 {[%emt 0:00:01]} 27. Nf3 {[%emt 0:03:53]} Bxc4 {[%emt 0:01:59]} 28. Qe4 {[%emt 0:01:44]} Rxd2+ {[%emt 0:02:10]} 29. Rxd2 {[%emt 0:00:03]} Rc8 {[%emt 0:00:06]} 30. Qb7 {[%emt 0:00:49]} Rf8 {[%emt 0:00:42]} 31. Qe4 {[%emt 0:01:15]} Qa6 {[%emt 0:00:28]} 32. Nd4 {[%emt 0:01:33]} Rd8 {[%emt 0:00:26]} 33. Qe3 {[%emt 0:00:14]} Qb7 {[%emt 0:00:38]} 34. f5 {[%emt 0:00:37]} Qe7 {[%emt 0:01:35]} 35. Kg1 {[%emt 0:01:58]} Qh4 {[%emt 0:00:31]} 36. Nf3 {[%emt 0:02:18]} Qe7 {[%emt 0:00:00]} 37. Rxd8+ Qxd8 {[%emt 0:00:01]} 38. Qd4 {[%emt 0:01:20]} Bd5 {[%emt 0:01:24]} 39. f6 {[%emt 0:00:02]} Qc7 {[%emt 0:00:32]} 40. fxg7 Kxg7 {[%emt 0:00:00]} 41. Qg4+ {[%emt 0:01:21]} 1/2-1/2

[Event "2nd Irena Warakomska Memorial-A"]
[Site "Suwalki"]
[Date "2018.08.06"]
[Round "7"]
[White "Caspi, Israel"]
[Black "Warakomski, Tomasz"]
[Result "1-0"]
[ECO "B43"]
[WhiteElo "2454"]
[BlackElo "2512"]
[Annotator "ChessBase"]
[PlyCount "63"]
[EventDate "2018.08.01"]
[EventType "swiss"]
[EventCountry "POL"]
[SourceTitle "playchess.com"]
[Source "ChessBase"]
[SourceQuality "1"]
[TimeControl "40/5400+30:1800+30"]

1. e4 {[%emt 0:00:00]} c5 {[%emt 0:00:07]} 2. Nf3 {[%emt 0:00:05]} e6 {[%emt 0:00:05]} 3. d4 {[%emt 0:00:05]} cxd4 {[%emt 0:00:03]} 4. Nxd4 {[%emt 0:00:06]} a6 {[%emt 0:00:02]} 5. Nc3 {[%emt 0:00:07]} b5 {[%emt 0:00:13]} 6. Bd3 {[%emt 0:00:06]} Qb6 {[%emt 0:00:04]} 7. Nf3 {[%emt 0:00:05]} Qc7 {[%emt 0:00:04]} 8. O-O {[%emt 0:00:26]} Bb7 {[%emt 0:00:04]} 9. Re1 {[%emt 0:00:51]} Be7 {[%emt 0:00:19]} 10. Bd2 {[%emt 0:11:00]} Nc6 {[%emt 0:05:17]} 11. Qe2 {[%emt 0:07:00]} d6 {[%emt 0:06:47]} 12. a4 {[%emt 0:04:36]} b4 {[%emt 0:00:31]} 13. Na2 {[%emt 0:00:02]} a5 {[%emt 0:00:04]} 14. c3 {[%emt 0:01:44]} bxc3 {[%emt 0:00:08]} 15. Nxc3 {[%emt 0:00:56]} Nf6 {[%emt 0:00:05]} 16. Rac1 {[%emt 0:01:50]} O-O {[%emt 0:02:48]} 17. Nb5 {[%emt 0:01:03]} Qb8 {[%emt 0:03:03]} 18. Nfd4 {[%emt 0:14:02]} Nxd4 {[%emt 0:05:59]} 19. Nxd4 {[%emt 0:00:03]} d5 {[%emt 0:02:19]} 20. exd5 {[%emt 0:12:19]} Bxd5 {[%emt 0:01:36]} 21. Bb5 {[%emt 0:01:24]} Ne4 {[%emt 0:20:51]} 22. Be3 {[%emt 0:04:49]} Bd6 {[%emt 0:03:34]} 23. g3 {[%emt 0:07:11]} Bb4 {[%emt 0:19:40]} 24. Red1 {[%emt 0:00:30]} Nf6 {[%emt 0:00:15]} 25. Bc6 {[%emt 0:04:58]} Qe5 {[%emt 0:16:09]} 26. Bxa8 {[%emt 0:05:46]} Rxa8 {[%emt 0:00:04]} 27. f3 {[%emt 0:06:34]} g5 {[%emt 0:00:22]} 28. Nc6 {[%emt 0:06:25]} Qf5 {[%emt 0:00:09]} 29. Rf1 {[%emt 0:00:22]} g4 {[%emt 0:01:37]} 30. fxg4 {[%emt 0:01:27]} Qg6 {[%emt 0:03:36]} 31. Bd4 {[%emt 0:01:53]} Nxg4 {[%emt 0:01:08]} 32. Ne5 {[%emt 0:00:40]} 1-0

[Event "2nd Irena Warakomska Memorial-A"]
[Site "Suwalki"]
[Date "2018.08.06"]
[Round "7"]
[White "Kashlinskaya, Alina"]
[Black "Sliwicka, Alicja"]
[Result "1/2-1/2"]
[ECO "D35"]
[WhiteElo "2435"]
[BlackElo "2293"]
[Annotator "NA"]
[PlyCount "81"]
[EventDate "2018.08.01"]
[EventType "swiss"]
[EventCountry "POL"]
[SourceTitle "playchess.com"]
[Source "ChessBase"]
[SourceQuality "1"]
[TimeControl "40/5400+30:1800+30"]

1. d4 {[%emt 0:00:00]} Nf6 {[%emt 0:00:28]} 2. c4 {[%emt 0:00:00]} e6 {[%emt 0:00:05]} 3. Nc3 {[%emt 0:01:40]} d5 {[%emt 0:00:15]} 4. cxd5 {[%emt 0:00:52]} exd5 {[%emt 0:00:07]} 5. Bg5 {[%emt 0:00:32]} Bb4 {[%emt 0:00:08]} 6. e3 {[%emt 0:05:35]} h6 {[%emt 0:00:09]} 7. Bxf6 {[%emt 0:08:04]} Qxf6 {[%emt 0:00:08]} 8. Qa4+ {[%emt 0:00:26]} Nc6 {[%emt 0:00:10]} 9. Nf3 {[%emt 0:00:32]} O-O {[%emt 0:07:02]} 10. Be2 {[%emt 0:00:39]} Be6 {[%emt 0:08:25]} 11. O-O {[%emt 0:00:57]} Bxc3 {[%emt 0:01:31]} 12. bxc3 {[%emt 0:00:07]} g5 {[%emt 0:12:29]} 13. c4 {[%emt 0:09:21]} Ne7 {[%emt 0:11:39]} 14. Rab1 {[%emt 0:05:14]} b6 {[%emt 0:05:13]} 15. Rbc1 {[%emt 0:02:11]} dxc4 {[%emt 0:08:36]} 16. Bxc4 {[%emt 0:00:32]} c6 {[%emt 0:01:38]} 17. Bxe6 {[%emt 0:15:35]} Qxe6 {[%emt 0:00:14]} 18. Rc3 {[%emt 0:00:46]} f6 {[%emt 0:04:20]} 19. Rfc1 {[%emt 0:00:46]} Kg7 {[%emt 0:01:45]} 20. e4 {[%emt 0:01:27]} Rfe8 {[%emt 0:09:18]} 21. Re3 {[%emt 0:06:42]} Red8 {[%emt 0:06:13]} 22. h3 {[%emt 0:03:17]} Qd7 {[%emt 0:00:30]} 23. Qa3 {[%emt 0:07:15]} Rac8 {[%emt 0:01:52]} 24. e5 {[%emt 0:04:55]} f5 {[%emt 0:00:33]} 25. e6 {[%emt 0:00:55]} Qc7 {[%emt 0:05:20]} 26. Ne5 {[%emt 0:06:54]} Rd5 {[%emt 0:02:30]} 27. Qb3 {[%emt 0:00:51]} Qd6 {[%emt 0:02:23]} 28. Qd1 {[%emt 0:04:42]} Rxd4 {[%emt 0:02:38]} 29. Qb3 {[%emt 0:02:42]} Qb4 {[%emt 0:01:04]} 30. Qxb4 {[%emt 0:01:56]} Rxb4 {[%emt 0:00:05]} 31. Rd1 {[%emt 0:03:15]} Nd5 {[%emt 0:03:10]} 32. Ree1 {[%emt 0:01:00]} Kf6 {[%emt 0:00:49]} 33. e7 {[%emt 0:01:13]} Re4 {[%emt 0:02:26]} 34. Nxc6 {[%emt 0:00:22]} Rxe1+ {[%emt 0:01:04]} 35. Rxe1 {[%emt 0:00:04]} Re8 {[%emt 0:00:07]} 36. Rd1 {[%emt 0:02:41]} Nxe7 {[%emt 0:01:54]} 37. Rd6+ {[%emt 0:00:19]} Kf7 {[%emt 0:00:50]} 38. Nxa7 {[%emt 0:01:06]} Ra8 {[%emt 0:00:31]} 39. Nc6 {[%emt 0:02:28]} Nxc6 {[%emt 0:00:18]} 40. Rxc6 {[%emt 0:00:00]} Rxa2 41. Rxb6 {[%emt 0:04:54]} 1/2-1/2

[Event "2nd Irena Warakomska Memorial-A"]
[Site "Suwalki"]
[Date "2018.08.06"]
[Round "7"]
[White "Cukrowski, Filip"]
[Black "Dzhuguryan, Tygran"]
[Result "1/2-1/2"]
[ECO "B12"]
[WhiteElo "2404"]
[BlackElo "2178"]
[Annotator "NA"]
[PlyCount "73"]
[EventDate "2018.08.01"]
[EventType "swiss"]
[EventCountry "POL"]
[SourceTitle "playchess.com"]
[Source "ChessBase"]
[SourceQuality "1"]
[TimeControl "40/5400+30:1800+30"]

1. e4 {[%emt 0:01:35]} c6 {[%emt 0:00:00]} 2. d4 {[%emt 0:00:28]} g6 {[%emt 0:00:00]} 3. Nf3 {[%emt 0:00:10]} Bg7 {[%emt 0:00:07]} 4. c3 {[%emt 0:01:10]} Nf6 {[%emt 0:00:45]} 5. Nbd2 {[%emt 0:00:59]} O-O {[%emt 0:00:45]} 6. Bd3 {[%emt 0:00:42]} d6 {[%emt 0:00:32]} 7. O-O {[%emt 0:00:50]} Nbd7 {[%emt 0:07:26]} 8. Qe2 {[%emt 0:05:28]} Nh5 {[%emt 0:00:37]} 9. Nc4 {[%emt 0:11:42]} b5 {[%emt 0:02:03]} 10. Na3 {[%emt 0:00:05]} e5 {[%emt 0:00:47]} 11. d5 $17 {[%emt 0:07:22]} (11. Rd1 $11 {keeps the balance.}) 11... cxd5 {[%emt 0:05:55]} 12. Bxb5 {[%emt 0:13:13]} dxe4 {[%emt 0:06:55]} 13. Qxe4 {[%emt 0:00:05]} Rb8 {[%emt 0:00:37]} 14. Bg5 {[%emt 0:07:36]} Ndf6 {[%emt 0:07:45]} 15. Qe3 {[%emt 0:01:56]} Qc7 {[%emt 0:00:23]} 16. Rad1 {[%emt 0:05:16]} h6 {[%emt 0:01:11]} 17. Bxf6 {[%emt 0:00:05]} Nxf6 {[%emt 0:00:04]} 18. h3 {[%emt 0:04:46]} Be6 {[%emt 0:01:18]} 19. c4 {[%emt 0:05:05]} a6 {[%emt 0:11:04]} 20. Bxa6 {[%emt 0:04:23]} Rxb2 {[%emt 0:00:20]} 21. Rb1 {[%emt 0:07:41]} Rxb1 {[%emt 0:13:23]} 22. Rxb1 {[%emt 0:00:08]} Ra8 {[%emt 0:06:06]} 23. Bb5 {[%emt 0:06:39]} Nd7 {[%emt 0:07:04]} 24. Bxd7 {[%emt 0:03:24]} Qxd7 {[%emt 0:00:48]} 25. Rb6 {[%emt 0:05:34]} Bf8 {[%emt 0:05:15]} 26. Nd2 {[%emt 0:03:27]} d5 {[%emt 0:07:41]} 27. c5 {[%emt 0:00:11]} Qa4 {[%emt 0:03:09]} 28. Nb5 {[%emt 0:00:26]} Qd1+ {[%emt 0:01:13]} 29. Kh2 {[%emt 0:00:35]} Bxc5 {[%emt 0:01:10]} 30. Qxc5 {[%emt 0:00:14]} Qxd2 {[%emt 0:00:03]} 31. Nc7 {[%emt 0:01:13]} Rc8 {[%emt 0:01:15]} 32. Rc6 {[%emt 0:00:40]} Rf8 {[%emt 0:04:55]} 33. Nxe6 {[%emt 0:01:35]} fxe6 {[%emt 0:00:02]} 34. Rxe6 {[%emt 0:00:12]} Qxf2 {[%emt 0:00:07]} 35. Qxf2 {[%emt 0:01:39]} Rxf2 {[%emt 0:00:02]} 36. Rxe5 {[%emt 0:00:06]} Rxa2 {[%emt 0:00:28]} 37. Rxd5 {[%emt 0:00:04]} 1/2-1/2

[Event "2nd Irena Warakomska Memorial-A"]
[Site "Suwalki"]
[Date "2018.08.06"]
[Round "7"]
[White "Rahul, Srivatshav P"]
[Black "Mulet, Piotr"]
[Result "1-0"]
[ECO "D85"]
[WhiteElo "2388"]
[BlackElo "2238"]
[Annotator "NA"]
[PlyCount "73"]
[EventDate "2018.08.01"]
[EventType "swiss"]
[EventCountry "POL"]
[SourceTitle "playchess.com"]
[Source "ChessBase"]
[SourceQuality "1"]
[TimeControl "40/5400+30:1800+30"]

1. d4 Nf6 2. c4 g6 3. Nc3 d5 4. cxd5 Nxd5 5. e4 Nxc3 6. bxc3 Bg7 7. Nf3 c5 8. Be3 Qa5 9. Qd2 Nc6 10. Rb1 a6 11. Rc1 f5 12. e5 b5 13. Be2 Bb7 14. O-O cxd4 15. cxd4 Qxd2 16. Bxd2 Rd8 17. Bc3 O-O 18. a4 b4 19. Bb2 h6 20. Rc5 Kh7 21. Rfc1 e6 22. Rxc6 Bxc6 23. Rxc6 Rc8 24. Rxc8 Rxc8 25. Bd3 b3 26. Kf1 Bf8 27. Nd2 Bb4 28. Nxb3 a5 29. Ke2 Rb8 30. Bc4 Rb6 31. Kd3 g5 32. Bc3 Kg6 33. Bxb4 Rxb4 34. Bxe6 Rxa4 35. d5 Re4 36. d6 Rxe5 37. d7 1-0

[Event "2nd Irena Warakomska Memorial-A"]
[Site "Suwalki"]
[Date "2018.08.06"]
[Round "7"]
[White "Roy, Prantik"]
[Black "Bukojemski, Adam"]
[Result "1-0"]
[ECO "A40"]
[WhiteElo "2377"]
[BlackElo "2233"]
[Annotator "NA"]
[PlyCount "103"]
[EventDate "2018.08.01"]
[EventType "swiss"]
[EventCountry "POL"]
[SourceTitle "playchess.com"]
[Source "ChessBase"]
[SourceQuality "1"]
[TimeControl "40/5400+30:1800+30"]

1. d4 {[%emt 0:00:00]} e6 {[%emt 0:00:00]} 2. e4 {[%emt 0:00:00]} c5 {[%emt 0:00:00]} 3. d5 {[%emt 0:00:53]} d6 {[%emt 0:01:26]} 4. c4 {[%emt 0:01:06]} exd5 {[%emt 0:00:34]} 5. exd5 {[%emt 0:00:13]} g6 {[%emt 0:01:29]} 6. Bd3 {[%emt 0:01:04]} Bg7 {[%emt 0:00:45]} 7. Ne2 {[%emt 0:00:32]} Ne7 {[%emt 0:00:14]} 8. O-O {[%emt 0:00:48]} O-O {[%emt 0:02:22]} 9. Nbc3 {[%emt 0:01:09]} Nd7 {[%emt 0:00:53]} 10. f4 {[%emt 0:00:58]} f5 {[%emt 0:01:02]} 11. Qc2 {[%emt 0:02:50]} Nf6 {[%emt 0:00:27]} 12. Bd2 {[%emt 0:01:26]} Kh8 {[%emt 0:00:46]} 13. Kh1 {[%emt 0:00:55]} Bd7 {[%emt 0:00:14]} 14. a4 {[%emt 0:01:59]} b6 {[%emt 0:00:41]} 15. Ng1 {[%emt 0:02:47]} a6 {[%emt 0:02:51]} 16. Nf3 {[%emt 0:00:15]} b5 {[%emt 0:03:03]} 17. cxb5 {[%emt 0:00:26]} Nexd5 {[%emt 0:01:35]} 18. Nxd5 {[%emt 0:00:35]} Nxd5 19. bxa6 {[%emt 0:01:34]} Qb6 {[%emt 0:03:21]} 20. Bc4 Nc7 {[%emt 0:05:03]} 21. Bc3 {[%emt 0:11:08]} d5 {[%emt 0:01:03]} 22. a5 {[%emt 0:02:31]} Qd6 {[%emt 0:04:08]} 23. Bxg7+ {[%emt 0:01:11]} Kxg7 {[%emt 0:00:02]} 24. Rad1 {[%emt 0:00:13]} Be6 {[%emt 0:08:54]} 25. Qc3+ {[%emt 0:05:05]} Rf6 {[%emt 0:01:01]} 26. Ne5 {[%emt 0:11:26]} Nxa6 {[%emt 0:02:11]} 27. Bxa6 {[%emt 0:00:47]} Rxa6 {[%emt 0:00:59]} 28. Rc1 {[%emt 0:00:52]} c4 {[%emt 0:01:56]} 29. Rfd1 {[%emt 0:00:26]} Qb8 {[%emt 0:02:11]} 30. Ra1 {[%emt 0:02:58]} h6 {[%emt 0:09:24]} 31. Re1 {[%emt 0:02:37]} Qd8 32. Nf3 {[%emt 0:01:16]} d4 {[%emt 0:03:56]} 33. Nxd4 {[%emt 0:00:23]} Bd5 34. Nc2 Qa8 {[%emt 0:04:47]} 35. Ne3 {[%emt 0:04:57]} Be4 {[%emt 0:01:48]} 36. Qxc4 {[%emt 0:02:41]} Qb8 {[%emt 0:03:20]} 37. Red1 {[%emt 0:03:18]} Ra7 {[%emt 0:01:30]} 38. Qd4 {[%emt 0:00:58]} Rb7 {[%emt 0:00:43]} 39. a6 {[%emt 0:01:29]} Ra7 {[%emt 0:02:08]} 40. b4 {[%emt 0:00:00]} Kf7 {[%emt 0:00:00]} 41. b5 {[%emt 0:00:59]} g5 {[%emt 0:04:35]} 42. Nc4 {[%emt 0:01:34]} gxf4 {[%emt 0:01:24]} 43. b6 {[%emt 0:00:36]} Re7 44. Nd6+ {[%emt 0:01:53]} Rxd6 {[%emt 0:01:03]} 45. Qxd6 {[%emt 0:00:02]} Qg8 {[%emt 0:00:07]} 46. Ra2 f3 {[%emt 0:00:43]} 47. Qg3 {[%emt 0:02:55]} fxg2+ {[%emt 0:00:10]} 48. Kg1 {[%emt 0:00:22]} Qc8 49. b7 {[%emt 0:01:15]} Qc5+ {[%emt 0:01:40]} 50. Qf2 {[%emt 0:00:08]} Qb5 {[%emt 0:00:47]} 51. Rb2 {[%emt 0:00:52]} Rd7 {[%emt 0:00:46]} 52. Re1 {[%emt 0:00:52]} 1-0

[Event "2nd Irena Warakomska Memorial-A"]
[Site "Suwalki"]
[Date "2018.08.06"]
[Round "7"]
[White "Oglaza, Oskar"]
[Black "Zgadzaj, Rafal"]
[Result "1/2-1/2"]
[ECO "A40"]
[WhiteElo "2364"]
[BlackElo "2154"]
[Annotator "NA"]
[PlyCount "106"]
[EventDate "2018.08.01"]
[EventType "swiss"]
[EventCountry "POL"]
[SourceTitle "playchess.com"]
[Source "ChessBase"]
[SourceQuality "1"]
[TimeControl "40/5400+30:1800+30"]

1. d4 {[%emt 0:00:00]} g6 {[%emt 0:00:00]} 2. g3 {[%emt 0:00:00]} Bg7 {[%emt 0:00:11]} 3. Bg2 {[%emt 0:00:02]} d6 {[%emt 0:02:05]} 4. c4 {[%emt 0:05:11]} Nd7 {[%emt 0:01:19]} 5. Nf3 {[%emt 0:02:24]} e5 6. Nc3 Ne7 {[%emt 0:08:04]} 7. e4 {[%emt 0:07:53]} O-O {[%emt 0:02:05]} 8. O-O c6 {[%emt 0:12:13]} 9. Be3 {[%emt 0:01:22]} Qc7 {[%emt 0:01:21]} 10. Qc2 Re8 11. Rad1 {[%emt 0:09:32]} a5 {[%emt 0:24:20]} 12. dxe5 {[%emt 0:05:13]} dxe5 {[%emt 0:01:58]} 13. c5 {[%emt 0:00:50]} Nf8 {[%emt 0:03:57]} 14. Nd2 {[%emt 0:02:27]} Be6 {[%emt 0:01:08]} 15. Na4 {[%emt 0:01:26]} Rad8 {[%emt 0:02:38]} 16. Nb6 {[%emt 0:03:29]} Nc8 {[%emt 0:04:31]} 17. Ndc4 {[%emt 0:04:33]} Bxc4 {[%emt 0:01:03]} 18. Nxc4 {[%emt 0:00:05]} Ne6 {[%emt 0:06:17]} 19. Bh3 {[%emt 0:00:31]} Rxd1 {[%emt 0:03:02]} 20. Rxd1 {[%emt 0:00:37]} Nd4 {[%emt 0:00:33]} 21. Bxd4 {[%emt 0:03:29]} exd4 {[%emt 0:00:10]} 22. Bxc8 {[%emt 0:00:08]} Rxc8 {[%emt 0:00:30]} 23. Nd6 {[%emt 0:01:03]} Rd8 {[%emt 0:06:32]} 24. f4 Rxd6 {[%emt 0:00:28]} 25. cxd6 {[%emt 0:00:40]} Qxd6 {[%emt 0:00:03]} 26. e5 {[%emt 0:03:12]} Qd5 {[%emt 0:01:14]} 27. Qb3 {[%emt 0:04:42]} Qc5 {[%emt 0:10:53]} 28. Qd3 {[%emt 0:05:27]} Bf8 29. Kf2 {[%emt 0:06:33]} Qd5 {[%emt 0:00:44]} 30. Qb3 {[%emt 0:00:43]} Qd7 {[%emt 0:03:46]} 31. Qb6 {[%emt 0:10:55]} Qd5 {[%emt 0:00:01]} 32. Qb3 {[%emt 0:01:55]} Qd7 {[%emt 0:01:05]} 33. Qc4 {[%emt 0:02:52]} b5 34. Qxd4 {[%emt 0:06:32]} Bc5 {[%emt 0:01:14]} 35. Qxc5 {[%emt 0:00:04]} Qxd1 {[%emt 0:00:07]} 36. Qxc6 {[%emt 0:02:13]} Qd2+ {[%emt 0:00:08]} 37. Kf3 {[%emt 0:00:35]} Qxb2 {[%emt 0:00:23]} 38. Qa8+ {[%emt 0:02:28]} Kg7 {[%emt 0:00:01]} 39. Qxa5 {[%emt 0:00:08]} Qxh2 {[%emt 0:00:12]} 40. Qxb5 {[%emt 0:00:00]} Qxa2 {[%emt 0:00:00]} 41. Qc6 {[%emt 0:03:45]} Qb3+ {[%emt 0:02:55]} 42. Kg2 Qd1 {[%emt 0:01:44]} 43. Qf6+ {[%emt 0:02:45]} Kg8 {[%emt 0:00:06]} 44. Kf2 {[%emt 0:01:47]} h5 {[%emt 0:00:49]} 45. Ke3 {[%emt 0:09:34]} Qe1+ {[%emt 0:01:33]} 46. Kf3 {[%emt 0:00:09]} Qf1+ {[%emt 0:00:31]} 47. Ke3 {[%emt 0:00:13]} Qg2 {[%emt 0:02:00]} 48. Qg5 {[%emt 0:01:00]} Qg1+ {[%emt 0:02:17]} 49. Kf3 {[%emt 0:01:16]} Qd1+ {[%emt 0:00:25]} 50. Ke3 {[%emt 0:00:18]} Qc1+ {[%emt 0:00:58]} 51. Kf2 {[%emt 0:02:01]} Qd2+ {[%emt 0:00:11]} 52. Kf3 {[%emt 0:00:06]} Qd3+ {[%emt 0:00:03]} 53. Kf2 {[%emt 0:00:05]} Qd2+ {[%emt 0:00:02]} 1/2-1/2